[Event "85th Tata Steel Masters 2023"]
[White "So,Wesley"]
[Black "Abdusattorov,Nodirbek"]
[Site "Wijk aan Zee"]
[Round "12.1"]
[Annotator "TA"]
[Result "1/2-1/2"]
[Date "2023.01.28"]
[WhiteElo "2760"]
[BlackElo "2713"]
[PlyCount "82"]
[TimeControl "60"]

{[%evp 18,82,34,10,16,22,19,19,36,17,16,11,39,0,10,0,0,0,0,-4,-8,-20,-10,-11,-15,-13,-9,-12,-4,-13,-8,-26,-26,-23,-21,-29,-35,-31,-10,-17,-8,-10,-4,-12,-25,-22,-10,-12,-7,-7,-7,-7,-7,-7,-7,-9,-8,-8,-9,-9,-8,-8,-10,-15,0,0,0]} 1. d4 {[%emt 0:0:12]} d5 {[%emt 0:0:10]} 2. c4 {[%emt 0:0:28]} dxc4 {[%emt 0:0:6]} 3. Nf3 {[%emt 0:1:50]} Nf6 {[%emt 0:0:6]} 4. e3 {[%emt 0:0:20]} e6 {[%emt 0:0:5]} 5. Bxc4 {[%emt 0:0:59]} c5 {[%emt 0:0:6]} 6. O-O {[%emt 0:0:5]} a6 {[%emt 0:0:6]} 7. dxc5 {[%emt 0:4:13]} Bxc5 {[%emt 0:0:11]} 8. Qxd8+ {[%emt 0:0:5]} Kxd8 {[%emt 0:0:8]} 9. Be2 {[%emt 0:0:7]} Ke7 {[%emt 0:0:11]} 10. Nbd2 {[%emt 0:0:8]} Bd7 {[%emt 0:7:8] D27: Queen's Gambit Accepted: Classical main line: 7 e4!? and 7 a4.} 11. b3 {[%emt 0:1:33]} Bb5 {[%emt 0:1:41]} 12. Nc4 {[%emt 0:1:44]} Nbd7 {[%emt 0:2:13]} 13. Nd4 {[%emt 0:6:53]} Rhc8 {[%emt 0:17:56]} 14. Bb2 {[%emt 0:7:27]} Bxc4 {[%emt 0:0:15]} 15. Bxc4 {[%emt 0:9:27]} Rc7 {[%emt 0:1:21]} 16. Rfd1 {[%emt 0:4:37]} Rac8 {[%emt 0:4:56] [#]} 17. Kf1 $146 {[%emt 0:3:15]} ({Predecessor:} 17. Nf3 Nb6 18. Bd3 Nbd5 19. a3 Bb6 20. Ne5 Bc5 21. g3 Kf8 22. Rdc1 Be7 23. Kf1 Rxc1+ 24. Rxc1 Rxc1+ 25. Bxc1 {½-½ Lazavik,D (2436)-Timofeev,A (2594) Botvinnik Cup 2020 (5.5)} )Bb4 {[%emt 0:2:47]} 18. Rac1 {[%emt 0:11:41]} (18. a3 $5 {[%cal Ra3b4]} Ba5 19. a4 $11 )Ne4 {[%emt 0:1:47]} 19. Nf3 {[%emt 0:11:38] Inhibits Nd2+.} b5 {[%emt 0:2:16]} 20. Bd3 {[%emt 0:0:15] This pair of bishops is nice.} Nc3 {[%emt 0:1:34]} 21. Bxc3 {[%emt 0:0:5]} Rxc3 {[%emt 0:2:59]} 22. Rxc3 {[%emt 0:0:7]} Rxc3 {[%emt 0:0:30]} 23. Ke2 {[%emt 0:1:18]} Nf6 {[%emt 0:6:0]} 24. Nd2 {[%emt 0:10:58]} Nd5 {[%emt 0:1:32]} 25. Nb1 {[%emt 0:3:45]} Rc7 {[%emt 0:2:15]} 26. Be4 {[%emt 0:2:42]} Nf6 {[%emt 0:4:17]} 27. Bd3 {[%emt 0:0:6]} h5 {[%emt 0:3:8]} 28. h3 {[%emt 0:2:11]} e5 {[%emt 0:1:11] [#] ...e4 is the strong threat.} 29. a3 {[%emt 0:2:47]} Bd6 {[%emt 0:0:22] And now ...e4 would win.} 30. Kf3 {[%emt 0:2:32]} h4 {[%emt 0:7:24]} 31. a4 {[%emt 0:4:47]} bxa4 {[%emt 0:7:7] The position is equal.} 32. bxa4 {[%emt 0:0:9]} Bb4 {[%emt 0:0:4]} 33. Bxa6 {[%emt 0:4:52]} e4+ {[%emt 0:4:4]} 34. Ke2 $1 {[%emt 0:0:13]} Rc2+ {[%emt 0:0:12]} 35. Kf1 $1 {[%emt 0:0:12]} Nd7 {[%emt 0:7:7]} 36. Be2 {[%emt 0:2:31]} f5 {[%emt 0:8:14]} 37. a5 {[%emt 0:1:0][%mdl 64] [#] Deflection} Bxa5 {[%emt 0:0:8] aiming for ...Bb4.} 38. Na3 {[%emt 0:0:7]} Ra2 {[%emt 0:0:20]} 39. Nb5 {[%emt 0:1:58]} g6 {[%emt 0:0:51]} 40. Nd4 {[%emt 0:1:13]} Ne5 {[%emt 0:1:46] Prevents Nc6+} 41. f4 {[%emt 0:52:44]} exf3 {[%emt 0:51:11] Weighted Error Value: White=0.05 (flawless) /Black=0.04 (flawless)} 1/2-1/2

[Event "85th Tata Steel Masters 2023"]
[White "Van Foreest,Jorden"]
[Black "Giri,Anish"]
[Site "Wijk aan Zee"]
[Round "12.2"]
[Annotator "RC"]
[Result "1/2-1/2"]
[Date "2023.01.28"]
[WhiteElo "2681"]
[BlackElo "2764"]
[PlyCount "158"]
[TimeControl "60"]

1. d4 {[%emt 0:0:5]} Nf6 {[%emt 0:0:10]} 2. c4 {[%emt 0:0:9]} e6 {[%emt 0:0:16]} 3. Nf3 {[%emt 0:0:8]} d5 {[%emt 0:2:10]} 4. cxd5 {[%emt 0:0:9]} exd5 {[%emt 0:0:8]} 5. Nc3 {[%emt 0:0:8]} Bb4 {[%emt 0:0:42]} 6. Bf4 {[%emt 0:3:56]} Ne4 {[%emt 0:1:9]} 7. Rc1 {[%emt 0:0:19]} Nc6 {[%emt 0:0:8]} 8. h4 {[%emt 0:0:6]} Bf5 {[%emt 0:3:58]} 9. e3 {[%emt 0:0:52]} Nxc3 {[%emt 0:5:22]} 10. bxc3 {[%emt 0:0:9]} Ba3 {[%emt 0:3:3]} 11. Rb1 {[%emt 0:0:16]} Bxb1 {[%emt 0:0:35]} 12. Qxb1 {[%emt 0:0:8]} Rb8 {[%emt 0:3:47]} 13. Qb3 {[%emt 0:0:9]} Bd6 {[%emt 0:12:34]} 14. Qxd5 {[%emt 0:0:8]} Bxf4 {[%emt 0:0:5]} 15. Qe4+ {[%emt 0:0:6]} Qe7 {[%emt 0:0:4]} 16. Qxf4 {[%emt 0:0:4]} Qa3 {[%emt 0:0:18]} 17. Qe4+ {[%emt 0:0:6]} Ne7 {[%emt 0:0:6]} 18. Qc2 {[%emt 0:0:7]} Nd5 {[%emt 0:0:24]} 19. c4 {[%emt 0:0:39]} Nc3 {[%emt 0:28:5]} 20. c5 {[%emt 0:4:6]} b6 {[%emt 0:5:59]} 21. Bc4 {[%emt 0:8:3]} bxc5 {[%emt 0:0:33]} 22. O-O {[%emt 0:3:4]} O-O {[%emt 0:8:36]} 23. h5 {[%emt 0:11:59]} Qb4 {[%emt 0:7:41]} 24. Ng5 {[%emt 0:4:14]} g6 {[%emt 0:0:20]} 25. Qd3 {[%emt 0:0:7]} Rb6 {[%emt 0:14:1]} 26. dxc5 {[%emt 0:12:57]} Rc6 {[%emt 0:0:24]} 27. hxg6 {[%emt 0:7:12]} Rxg6 {[%emt 0:0:5]} 28. f4 {[%emt 0:5:35]} Rg7 {[%emt 0:0:8]} 29. Rc1 {[%emt 0:13:43]} Na4 {[%emt 0:0:7]} 30. Ne4 {[%emt 0:6:32]} Nb2 {[%emt 0:4:2]} 31. Qb3 {[%emt 0:2:46]} Qxb3 {[%emt 0:1:38]} 32. Bxb3 {[%emt 0:0:5]} Kh8 {[%emt 0:4:54]} 33. Rb1 {[%emt 0:3:41]} Nd3 {[%emt 0:0:10]} 34. Bc2 {[%emt 0:3:20]} f5 {[%emt 0:0:36]} 35. Bxd3 {[%emt 0:1:19]} fxe4 {[%emt 0:0:4]} 36. Bxe4 {[%emt 0:0:4]} Re7 {[%emt 0:0:6]} 37. Rb4 {[%emt 0:0:4]} Rd8 {[%emt 0:3:34]} 38. Kf2 {[%emt 0:0:40]} Rd2+ {[%emt 0:0:6]} 39. Kf3 {[%emt 0:0:2]} Rxa2 {[%emt 0:0:5]} 40. g4 {[%emt 0:0:13]} h6 {[%emt 0:1:37]} 41. f5 {[%emt 0:59:7]} Kg7 {[%emt 0:52:21]} 42. Kf4 {[%emt 0:0:35]} Ra3 {[%emt 0:0:0]} 43. Rd4 {[%emt 0:0:0]} Kf6 {[%emt 0:0:0]} 44. Bd3 {[%emt 0:0:0]} Ra2 {[%emt 0:0:0]} 45. e4 {[%emt 0:0:0]} Rf2+ {[%emt 0:0:0]} 46. Ke3 {[%emt 0:0:0]} Rg2 {[%emt 0:0:0]} 47. Kf3 {[%emt 0:0:0]} Rd2 {[%emt 0:0:0]} 48. Rd8 {[%emt 0:0:0]} Ke5 {[%emt 0:0:0]} 49. Ke3 {[%emt 0:0:0]} Rg2 {[%emt 0:0:0]} 50. Kf3 {[%emt 0:0:0]} Rd2 {[%emt 0:0:0]} 51. c6 {[%emt 0:0:0]} a5 {[%emt 0:0:0]} 52. Ke3 {[%emt 0:0:0]} Rg2 {[%emt 0:0:0]} 53. Be2 {[%emt 0:0:0]} Kf6 {[%emt 0:0:0]} 54. Bf3 {[%emt 0:0:0]} Rc2 {[%emt 0:0:0]} 55. Kf4 {[%emt 0:0:0]} a4 {[%emt 0:0:0]} 56. Rg8 {[%emt 0:0:0]} a3 {[%emt 0:0:0]} 57. Rf8+ {[%emt 0:0:0]} Kg7 {[%emt 0:0:0]} 58. Ra8 {[%emt 0:0:0]} a2 {[%emt 0:0:0]} 59. e5 {[%emt 0:0:0]} Re8 {[%emt 0:0:0]} 60. Ra7 {[%emt 0:0:0]} Kf8 {[%emt 0:0:0]} 61. e6 {[%emt 0:3:35]} Rf2 {[%emt 0:0:0]} 62. Kg3 {[%emt 0:0:28]} Rd2 {[%emt 0:2:33]} 63. Kf4 {[%emt 0:11:26]} Rf2 {[%emt 0:2:26]} 64. Ke3 {[%emt 0:0:19]} Rb2 {[%emt 0:2:19]} 65. Kd4 {[%emt 0:2:58]} Kg7 {[%emt 0:2:48]} 66. Rxc7+ {[%emt 0:6:15]} Kf6 {[%emt 0:0:5]} 67. Rf7+ {[%emt 0:0:7]} Kg5 {[%emt 0:0:2]} 68. Ra7 {[%emt 0:0:7]} Rd8+ {[%emt 0:0:34]} 69. Kc3 {[%emt 0:0:0]} Rf2 {[%emt 0:0:0]} 70. Be4 {[%emt 0:0:0]} Re2 {[%emt 0:0:0]} 71. Bc2 {[%emt 0:4:23]} Rd6 {[%emt 0:4:38]} 72. Rxa2 {[%emt 0:0:25]} Rxc6+ {[%emt 0:1:2]} 73. Kd3 {[%emt 0:0:7]} Rh2 {[%emt 0:1:2]} 74. e7 {[%emt 0:2:8]} Rc8 {[%emt 0:0:45]} 75. Ra6 {[%emt 0:1:27]} Rcxc2 {[%emt 0:2:26]} 76. e8=Q {[%emt 0:0:7]} Rhd2+ {[%emt 0:0:2]} 77. Ke3 {[%emt 0:0:5]} Re2+ {[%emt 0:0:3]} 78. Kd3 {[%emt 0:0:35]} Red2+ {[%emt 0:0:27]} 79. Ke3 {[%emt 0:0:4]} Re2+ {[%emt 0:0:2]} 1/2-1/2

[Event "85th Tata Steel Masters 2023"]
[White "Carlsen,Magnus"]
[Black "Praggnanandhaa R"]
[Site "Wijk aan Zee"]
[Round "12.3"]
[Annotator "RC"]
[Result "1/2-1/2"]
[Date "2023.01.28"]
[WhiteElo "2859"]
[BlackElo "2684"]
[PlyCount "134"]
[TimeControl "60"]

1. Nf3 {[%emt 0:1:30]} Nf6 {[%emt 0:1:1]} 2. c4 {[%emt 0:2:20]} c5 {[%emt 0:0:19]} 3. Nc3 {[%emt 0:0:12]} Nc6 {[%emt 0:0:5]} 4. e3 {[%emt 0:0:35]} e6 {[%emt 0:0:50]} 5. d4 {[%emt 0:0:9]} d5 {[%emt 0:0:14]} 6. a3 {[%emt 0:1:19]} dxc4 {[%emt 0:1:12]} 7. Bxc4 {[%emt 0:0:9]} a6 {[%emt 0:0:19]} 8. Bd3 {[%emt 0:0:57]} cxd4 {[%emt 0:1:34]} 9. exd4 {[%emt 0:0:10]} g6 {[%emt 0:0:50]} 10. Bg5 {[%emt 0:3:11]} Bg7 {[%emt 0:1:16]} 11. Be4 {[%emt 0:2:52]} Ne7 {[%emt 0:21:14]} 12. h4 {[%emt 0:1:14]} h6 {[%emt 0:2:56]} 13. Bxf6 {[%emt 0:0:48]} Bxf6 {[%emt 0:0:2]} 14. Qd2 {[%emt 0:0:51]} Nd5 {[%emt 0:15:56]} 15. h5 {[%emt 0:13:59]} g5 {[%emt 0:1:17]} 16. Ne5 {[%emt 0:7:55]} Bg7 {[%emt 0:11:18]} 17. Bxd5 {[%emt 0:12:26]} exd5 {[%emt 0:0:5]} 18. O-O {[%emt 0:0:7]} Be6 {[%emt 0:8:27]} 19. Rae1 {[%emt 0:0:40]} O-O {[%emt 0:2:21]} 20. Re3 {[%emt 0:4:25]} Bf5 {[%emt 0:10:35]} 21. Qd1 {[%emt 0:6:40]} Re8 {[%emt 0:0:34]} 22. Rfe1 {[%emt 0:3:37]} Be6 {[%emt 0:2:41]} 23. Na4 {[%emt 0:2:19]} b6 {[%emt 0:4:33]} 24. Rb3 {[%emt 0:3:8]} Qc7 {[%emt 0:3:13]} 25. Nxb6 {[%emt 0:11:22]} Rab8 {[%emt 0:0:37]} 26. Na4 {[%emt 0:0:2]} Rxb3 {[%emt 0:6:55]} 27. Qxb3 {[%emt 0:0:2]} Bxe5 {[%emt 0:0:36]} 28. dxe5 {[%emt 0:1:3]} Qa5 {[%emt 0:4:1]} 29. Qd1 {[%emt 0:3:16]} Bg4 {[%emt 0:1:37]} 30. f3 {[%emt 0:0:15]} Bd7 {[%emt 0:0:13]} 31. Nc3 {[%emt 0:0:39]} Qc5+ {[%emt 0:0:35]} 32. Kh2 {[%emt 0:5:9]} d4 {[%emt 0:1:13]} 33. Re4 {[%emt 0:0:24]} dxc3 {[%emt 0:1:25]} 34. Qxd7 {[%emt 0:0:3]} c2 {[%emt 0:3:27]} 35. Qxe8+ {[%emt 0:0:34]} Kg7 {[%emt 0:0:2]} 36. b4 {[%emt 0:5:54]} Qc3 {[%emt 0:0:27]} 37. f4 {[%emt 0:5:24]} c1=Q {[%emt 0:0:35]} 38. f5 {[%emt 0:0:2]} Qc7 {[%emt 0:1:7]} 39. f6+ {[%emt 0:0:8]} Kh7 {[%emt 0:0:4]} 40. Qf8 {[%emt 0:0:7]} Qxe5+ {[%emt 0:0:7]} 41. Rxe5 {[%emt 0:50:7]} Qf4+ {[%emt 0:50:3]} 42. Kg1 {[%emt 0:1:24]} Qc1+ {[%emt 0:1:3]} 43. Kf2 {[%emt 0:1:53]} Qf4+ {[%emt 0:0:36]} 44. Ke2 {[%emt 0:0:10]} Qxe5+ {[%emt 0:0:5]} 45. Kd3 {[%emt 0:0:5]} Qxf6 {[%emt 0:4:30]} 46. Qe8 {[%emt 0:2:6]} Qf1+ {[%emt 0:0:0]} 47. Kd4 {[%emt 0:0:0]} Kg7 {[%emt 0:0:0]} 48. Qe5+ {[%emt 0:0:0]} Kg8 {[%emt 0:0:0]} 49. Qb8+ {[%emt 0:0:0]} Kg7 {[%emt 0:0:0]} 50. Qg3 {[%emt 0:0:0]} Qd1+ {[%emt 0:0:0]} 51. Kc5 {[%emt 0:0:0]} Qxh5 {[%emt 0:0:0]} 52. Qe5+ {[%emt 0:0:0]} Kg8 {[%emt 0:0:0]} 53. a4 {[%emt 0:0:0]} Qd1 {[%emt 0:0:0]} 54. a5 {[%emt 0:0:0]} Qg1+ {[%emt 0:0:0]} 55. Qd4 {[%emt 0:0:0]} Qxg2 {[%emt 0:0:0]} 56. b5 {[%emt 0:0:0]} g4 {[%emt 0:0:0]} 57. bxa6 {[%emt 0:0:0]} g3 {[%emt 0:0:0]} 58. a7 {[%emt 0:0:0]} Qa8 {[%emt 0:0:0]} 59. Kd6 {[%emt 0:0:0]} g2 {[%emt 0:4:41]} 60. Ke5 {[%emt 0:0:0]} Qf3 {[%emt 0:1:17]} 61. Qd8+ {[%emt 0:0:0]} Kh7 {[%emt 0:0:0]} 62. a8=Q {[%emt 0:0:0]} Qc3+ {[%emt 0:0:0]} 63. Qd4 {[%emt 0:0:0]} Qxd4+ {[%emt 0:0:0]} 64. Kxd4 {[%emt 0:0:0]} g1=Q+ {[%emt 0:0:0]} 65. Kd3 {[%emt 0:0:0]} Qd1+ {[%emt 0:0:0]} 66. Ke3 {[%emt 0:0:0]} Qe1+ {[%emt 0:0:0]} 67. Kd3 {[%emt 0:0:0]} Qd1+ {[%emt 0:0:0]} 1/2-1/2

[Event "85th Tata Steel Masters 2023"]
[White "Caruana,Fabiano"]
[Black "Keymer,Vincent"]
[Site "Wijk aan Zee"]
[Round "12.4"]
[Annotator "TA"]
[Result "1/2-1/2"]
[Date "2023.01.28"]
[WhiteElo "2766"]
[BlackElo "2696"]
[PlyCount "79"]
[TimeControl "60"]

{[%evp 18,79,11,0,9,17,44,34,27,9,31,13,25,5,6,10,6,-5,11,10,6,5,0,2,14,10,61,47,74,64,66,93,72,25,31,29,30,18,29,28,24,30,27,24,24,26,26,18,23,0,0,0,0,0,0,0,0,0,0,0,0,0,0,-3]} 1. e4 {[%emt 0:0:3]} e5 {[%emt 0:0:4]} 2. Nf3 {[%emt 0:0:5]} Nc6 {[%emt 0:0:3]} 3. Bb5 {[%emt 0:0:4][%cal Yf1b5,Yb5a4,Ya4b3][%mdl 32]} a6 {[%emt 0:0:3]} 4. Ba4 {[%emt 0:0:6]} Nf6 {[%emt 0:0:6]} 5. O-O {[%emt 0:0:9]} Be7 {[%emt 0:0:5]} 6. d3 {[%emt 0:0:11][%cal Yd2d3,Yd3d4,Yd4e5][%mdl 32]} b5 {[%emt 0:0:10]} 7. Bb3 {[%emt 0:0:5]} d6 {[%emt 0:0:3]} 8. c3 {[%emt 0:0:8]} O-O {[%emt 0:0:19]} 9. h3 {[%emt 0:0:10]} Na5 {[%emt 0:1:45]} 10. Bc2 {[%emt 0:2:13]} c5 {[%emt 0:0:3] C55: Two Knights: 4 d3, 4 d4 exd4 5 e5 and Max Lange Attack.} 11. d4 {[%emt 0:1:3]} d5 {[%emt 0:0:7]} 12. dxe5 {[%emt 0:9:9]} Nxe4 {[%emt 0:0:11] White is slightly better.} 13. Nbd2 {[%emt 0:0:42]} Bf5 {[%emt 0:0:6]} 14. Re1 {[%emt 0:2:27][%cal Rd2e4]} Nc6 {[%emt 0:1:22]} 15. Nf1 {[%emt 0:11:39]} c4 {[%emt 0:0:23]} 16. Be3 {[%emt 0:5:18]} Bg6 {[%emt 0:0:20] [#]} 17. Ng3 $146 {[%emt 0:14:42]} ({Predecessor:} 17. Nd4 Qc8 18. f4 Bh4 19. Re2 Nxd4 20. Bxd4 f6 21. Kh2 fxe5 22. Bxe5 Qe6 23. g3 {½-½ Schmitt,C (2347)-Jung,R (2336) GER-ch51 final email 2021} )b4 {[%emt 0:21:53]} 18. Nxe4 {[%emt 0:13:48]} dxe4 {[%emt 0:1:26]} 19. Ba4 {[%emt 0:0:9]} bxc3 {[%emt 0:10:11]} 20. bxc3 {[%emt 0:0:56]} Nb4 {[%emt 0:6:41]} 21. Qxd8 {[%emt 0:15:57]} Rfxd8 {[%emt 0:2:45]} (21... Raxd8 $11 22. Nh4 Nd3 23. Nxg6 hxg6 )22. Nd4 $14 {[%emt 0:0:50][%cal Yf3d4,Yd4c6,Yc6e7][%mdl 32]} Nd3 {[%emt 0:2:31][%csl Ye1,Ye5] [#]} 23. Nc6 $1 {[%emt 0:0:5][%csl Yd8,Ye7]} Re8 {[%emt 0:1:7][%cal Yd8e8,Ye8e7,Ye7c7][%mdl 32]} 24. Nxe7+ $1 {[%emt 0:1:54]} Rxe7 {[%emt 0:0:4] [#]} 25. Reb1 {[%emt 0:0:5]} ({White should try} 25. Bc6 $1 $16 {[%cal Rc6a8]} Rf8 26. Reb1 )Nxe5 $11 {[%emt 0:3:45]} 26. Rb6 {[%emt 0:1:44]} f6 {[%emt 0:4:7]} 27. Rab1 {[%emt 0:6:22][%mdl 1024] White has compensation.} Be8 {[%emt 0:2:55]} 28. Bc5 {[%emt 0:7:24]} Rc7 {[%emt 0:11:25]} 29. Bd6 {[%emt 0:0:12] And now Bxe8 would win. A strong pair of Bishops.} Rcc8 {[%emt 0:0:12]} 30. Bd1 {[%emt 0:0:15]} Nd7 {[%emt 0:3:45]} 31. Rb7 {[%emt 0:1:3] Strongly threatening Bg4. Black is weak on the dark squares} Rc6 {[%emt 0:13:39]} 32. Ba3 {[%emt 0:3:54] Black must now prevent Ba4.} Nc5 {[%emt 0:1:26] Prevents Ba4.} 33. Rb8 {[%emt 0:3:19]} Rxb8 {[%emt 0:0:10] The position is equal.} 34. Rxb8 {[%emt 0:0:4]} Kf7 {[%emt 0:0:8]} 35. Be2 {[%emt 0:1:29]} Bd7 {[%emt 0:7:23]} 36. Ra8 {[%emt 0:2:47]} Nd3 {[%emt 0:4:3]} 37. Ra7 {[%emt 0:2:55]} Ke8 {[%emt 0:4:14]} 38. Ra8+ $1 {[%emt 0:0:52]} Kf7 {[%emt 0:0:29]} 39. Ra7 {[%emt 0:1:36]} Ke8 {[%emt 0:0:33]} 40. Ra8+ $1 {[%emt 0:0:15] Weighted Error Value: White=0.05 (flawless) /Black=0.06 (flawless)} 1/2-1/2

[Event "85th Tata Steel Masters 2023"]
[White "Gukesh D"]
[Black "Aronian,Levon"]
[Site "Wijk aan Zee"]
[Round "12.5"]
[Annotator "RC"]
[Result "1/2-1/2"]
[Date "2023.01.28"]
[WhiteElo "2725"]
[BlackElo "2735"]
[PlyCount "143"]
[TimeControl "60"]

1. d4 {[%emt 0:0:45]} Nf6 {[%emt 0:0:6]} 2. c4 {[%emt 0:0:16]} e6 {[%emt 0:0:6]} 3. Nf3 {[%emt 0:0:15]} d5 {[%emt 0:0:6]} 4. Nc3 {[%emt 0:0:9]} Bb4 {[%emt 0:0:6]} 5. Qa4+ {[%emt 0:0:37]} Nc6 {[%emt 0:0:7]} 6. e3 {[%emt 0:0:21]} O-O {[%emt 0:0:7]} 7. Bd2 {[%emt 0:0:7]} Qe8 {[%emt 0:0:39]} 8. Qb3 {[%emt 0:12:20]} a5 {[%emt 0:7:43]} 9. a3 {[%emt 0:1:34]} Bxc3 {[%emt 0:0:41]} 10. Bxc3 {[%emt 0:2:48]} b6 {[%emt 0:0:12]} 11. cxd5 {[%emt 0:11:40]} exd5 {[%emt 0:0:6]} 12. Bb5 {[%emt 0:0:9]} Ba6 {[%emt 0:5:37]} 13. Bxa6 {[%emt 0:3:48]} Rxa6 {[%emt 0:0:4]} 14. O-O {[%emt 0:0:9]} Qe6 {[%emt 0:6:19]} 15. Rac1 {[%emt 0:3:9]} Ne4 {[%emt 0:0:48]} 16. Rfd1 {[%emt 0:0:23]} Ne7 {[%emt 0:5:19]} 17. Qc2 {[%emt 0:2:16]} Rc8 {[%emt 0:1:21]} 18. Be1 {[%emt 0:5:40]} h6 {[%emt 0:0:47]} 19. Qe2 {[%emt 0:7:57]} Ra7 {[%emt 0:4:3]} 20. Rc2 {[%emt 0:0:10]} c5 {[%emt 0:2:45]} 21. dxc5 {[%emt 0:1:5]} bxc5 {[%emt 0:0:23]} 22. Nd2 {[%emt 0:1:38]} Nxd2 {[%emt 0:4:54]} 23. Bxd2 {[%emt 0:2:32]} Nf5 {[%emt 0:1:24]} 24. Bc3 {[%emt 0:28:28]} a4 {[%emt 0:3:45]} 25. h3 {[%emt 0:4:48]} Rd7 {[%emt 0:5:10]} 26. Qg4 {[%emt 0:5:29]} d4 {[%emt 0:47:26]} 27. Bxd4 {[%emt 0:1:28]} Rcd8 {[%emt 0:1:31]} 28. Rxc5 {[%emt 0:0:24]} Nxd4 {[%emt 0:0:4]} 29. exd4 {[%emt 0:1:10]} Qxg4 {[%emt 0:0:4]} 30. hxg4 {[%emt 0:0:4]} Rxd4 {[%emt 0:0:5]} 31. Rxd4 {[%emt 0:0:10]} Rxd4 {[%emt 0:0:3]} 32. Rc8+ {[%emt 0:5:30]} Kh7 {[%emt 0:0:1]} 33. Rb8 {[%emt 0:0:8]} Rd1+ {[%emt 0:0:8]} 34. Kh2 {[%emt 0:0:5]} g5 {[%emt 0:0:13]} 35. g3 {[%emt 0:2:8]} Rc1 {[%emt 0:2:47]} 36. Kg2 {[%emt 0:0:35]} Rc2 {[%emt 0:0:55]} 37. Rb6 {[%emt 0:1:27]} Kg7 {[%emt 0:1:55]} 38. Kf3 {[%emt 0:2:4]} Rd2 {[%emt 0:0:9]} 39. Ke3 {[%emt 0:0:26]} Rc2 {[%emt 0:0:2]} 40. Rb4 {[%emt 0:0:22]} Kg6 {[%emt 0:0:36]} 41. f4 {[%emt 0:11:47]} Rg2 {[%emt 0:10:42]} 42. Kf3 {[%emt 0:0:31]} Rc2 {[%emt 0:0:26]} 43. Rb6+ {[%emt 0:2:14]} Kg7 {[%emt 0:0:34]} 44. Ke4 {[%emt 0:1:50]} Rd2 {[%emt 0:0:48]} 45. Rb4 {[%emt 0:3:13]} Kf6 {[%emt 0:1:58]} 46. f5 {[%emt 0:7:29]} Rg2 {[%emt 0:4:6]} 47. Kd5 {[%emt 0:15:58]} Rxg3 {[%emt 0:0:57]} 48. Rxa4 {[%emt 0:0:5]} h5 {[%emt 0:0:3]} 49. gxh5 {[%emt 0:5:14]} Kxf5 {[%emt 0:2:26]} 50. Ra7 {[%emt 0:0:8]} g4 {[%emt 0:3:27]} 51. Rxf7+ {[%emt 0:1:28]} Kg5 {[%emt 0:0:11]} 52. Kc4 {[%emt 0:3:35]} Kxh5 {[%emt 0:1:44]} 53. a4 {[%emt 0:1:17]} Rf3 {[%emt 0:2:18]} 54. Rh7+ {[%emt 0:0:54]} Kg6 {[%emt 0:0:6]} 55. Rh1 {[%emt 0:1:41]} Rf4+ {[%emt 0:0:6]} 56. Kb5 {[%emt 0:0:35]} Rf5+ {[%emt 0:1:48]} 57. Kb4 {[%emt 0:0:5]} Rf4+ {[%emt 0:1:22]} 58. Ka3 {[%emt 0:0:5]} g3 {[%emt 0:7:18]} 59. Rg1 {[%emt 0:5:28]} Rg4 {[%emt 0:0:50]} 60. a5 {[%emt 0:0:42]} Kf7 {[%emt 0:0:5]} 61. b4 {[%emt 0:0:0]} Ke7 {[%emt 0:0:0]} 62. a6 {[%emt 0:0:0]} Kd7 {[%emt 0:0:0]} 63. a7 {[%emt 0:0:0]} Rg8 {[%emt 0:0:0]} 64. Ka4 {[%emt 0:0:0]} Kc6 {[%emt 0:0:0]} 65. Rxg3 {[%emt 0:0:0]} Rh8 {[%emt 0:0:0]} 66. Rg7 {[%emt 0:0:0]} Kb6 {[%emt 0:0:0]} 67. Kb3 {[%emt 0:0:0]} Rh3+ {[%emt 0:0:0]} 68. Kc4 {[%emt 0:0:0]} Rh4+ {[%emt 0:0:0]} 69. Kb3 {[%emt 0:0:0]} Rh3+ {[%emt 0:0:0]} 70. Ka4 {[%emt 0:0:0]} Rh8 {[%emt 0:0:0]} 71. Rh7 {[%emt 0:12:12]} Ra8 {[%emt 0:9:11]} 72. Rf7 {[%emt 0:0:11]} 1/2-1/2

[Event "85th Tata Steel Masters 2023"]
[White "Rapport,Richard"]
[Black "Ding,Liren"]
[Site "Wijk aan Zee"]
[Round "12.6"]
[Annotator "TA"]
[Result "1-0"]
[Date "2023.01.28"]
[WhiteElo "2740"]
[BlackElo "2811"]
[PlyCount "83"]
[TimeControl "60"]

{[%evp 22,83,0,4,15,9,12,0,35,28,66,60,72,0,0,0,0,0,23,22,18,-14,0,0,0,0,23,10,33,8,45,45,48,49,50,52,50,43,46,44,41,41,47,41,42,12,9,7,9,20,63,56,133,135,477,472,442,467,464,462,460,438,437,456]} 1. e4 {[%emt 0:0:47]} c5 {[%emt 0:0:34]} 2. Nf3 {[%emt 0:0:57]} d6 {[%emt 0:0:7]} 3. d4 {[%emt 0:0:48]} cxd4 {[%emt 0:0:9]} 4. Qxd4 {[%emt 0:0:5]} Nf6 {[%emt 0:0:11]} 5. Nc3 {[%emt 0:1:16]} Nc6 {[%emt 0:0:19]} 6. Bb5 {[%emt 0:2:42]} Bd7 {[%emt 0:1:51]} 7. Bxc6 {[%emt 0:0:10]} Bxc6 {[%emt 0:0:12]} 8. Bg5 {[%emt 0:0:5]} e6 {[%emt 0:1:36]} 9. O-O-O {[%emt 0:0:41]} Be7 {[%emt 0:0:8]} 10. Qd3 {[%emt 0:0:41]} Qa5 {[%emt 0:15:46]} 11. h4 {[%emt 0:3:54]} h6 {[%emt 0:1:28]} 12. Bd2 {[%emt 0:0:19]} Qa6 {[%emt 0:3:36] B53: Sicilian: 2...d6: Lines with Qxd4.} 13. Qxa6 {[%emt 0:1:55]} bxa6 {[%emt 0:0:4]} 14. Rde1 {[%emt 0:4:4]} e5 {[%emt 0:4:21] The position is equal.} 15. Nh2 {[%emt 0:15:16][%cal Yf3h2,Yh2f1,Yf1g3,Yg3f5][%mdl 32] [#]} Nd7 $146 {[%emt 0:19:47]} ({Predecessor:} 15... O-O-O 16. f3 Rhe8 17. Ng4 Nxg4 18. fxg4 Kd7 19. Be3 Ra8 20. Rd1 Rec8 21. b3 Rab8 {½-½ Szpar,M (2434)-Vokhidov,S (2536) Wch Rapid Warsaw 2021 (5)} )16. Nf1 {[%emt 0:14:59]} f5 {[%emt 0:0:5]} 17. f3 {[%emt 0:12:26]} (17. exf5 $16 Rc8 18. Ne3 )fxe4 $11 {[%emt 0:15:50]} 18. fxe4 {[%emt 0:1:38]} Nf6 {[%emt 0:0:7]} 19. Ng3 {[%emt 0:10:56]} Rf8 {[%emt 0:0:12]} 20. Nf5 {[%emt 0:10:30]} Rf7 {[%emt 0:0:12]} 21. h5 {[%emt 0:8:51][%cal Yg2g4]} (21. Rh3 {feels hotter.} Kd7 22. Rd3 Rc8 23. b3 )Bf8 {[%emt 0:1:4]} 22. Ng3 {[%emt 0:1:8]} Rc8 {[%emt 0:5:28]} 23. Nd1 {[%emt 0:2:0]} Rfc7 {[%emt 0:24:7][%cal Yc6e4]} 24. Ba5 {[%emt 0:0:17]} Rd7 {[%emt 0:1:33]} 25. Rh4 {[%emt 0:1:57]} d5 {[%emt 0:2:44]} 26. exd5 {[%emt 0:1:38]} Bxd5 {[%emt 0:0:18]} 27. Rxe5+ {[%emt 0:2:9]} Kf7 {[%emt 0:0:4]} 28. Bb4 {[%emt 0:1:9]} Bxg2 {[%emt 0:4:46]} 29. Bxf8 {[%emt 0:0:7]} (29. Ne3 {seems wilder.} Bb7 30. b3 Re8 31. Rxe8 Kxe8 32. Bxf8 Kxf8 33. Rf4 )Kxf8 {[%emt 0:0:3]} 30. Ne3 {[%emt 0:0:19] Dodges Rd5} Bb7 {[%emt 0:0:23]} 31. b3 {[%emt 0:3:33]} Re8 {[%emt 0:0:43]} 32. Rxe8+ {[%emt 0:0:10]} Kxe8 {[%emt 0:0:3]} 33. c4 {[%emt 0:2:28]} Kf7 {[%emt 0:0:53]} 34. Kc2 {[%emt 0:1:37]} g5 {[%emt 0:5:42]} 35. Rh2 {[%emt 0:3:11]} Ke6 {[%emt 0:2:38]} 36. Re2 $1 {[%emt 0:0:2] Ng4+ is the strong threat.} Bf3 {[%emt 0:0:9]} (36... Kf7 $1 $14 )37. Re1 $16 {[%emt 0:0:1] aiming for Ng4+.} Nxh5 $2 {[%emt 0:0:43][%mdl 8192] A mistake that costs the game.} (37... Bxh5 $2 38. Ng4+ Kf7 39. Ne5+ (39. Nxh6+ Kg6 $14 )Ke8 40. Nxh5 Nxh5 41. Nxd7+ Kxd7 42. Rh1 $18 )(37... Kd6 $16 {is more resistant.} )38. Ng4+ $18 {[%emt 0:0:24][%mdl 64] [#] Discovered Attack. White is clearly winning.} Kd6 {[%emt 0:0:8]} 39. Nf5+ {[%emt 0:0:6]} Kc7 {[%emt 0:0:43]} 40. Ne5 {[%emt 0:0:4]} (40. Nfxh6 Rd4 $14 )({Worse is} 40. Ngxh6 g4 $11 )g4 {[%emt 0:1:2]} 41. Nxd7 {[%emt 0:52:18]} ({Not} 41. Nxh6 Rd4 $14 )Kxd7 {[%emt 0:50:3]} 42. Kd2 {[%emt 0:0:0] Weighted Error Value: White=0.06 (flawless) /Black=0.34} ({Weaker is} 42. Nxh6 g3 43. Nf5 g2 $18 )(42. Re7+ Kd8 $18 )1-0